bitfinex/quotes_SOLUSD_20240703
["timestamp","ask_amount","ask_price","bid_price","bid_amount"]
[1720048538511,7.4318,141.01,140.96,7.0939]
[1720048538705,13.54,140.97,140.96,7.0939]
[1720048539489,21.7879,141.03,140.98,7.093]
[1720048539490,28.8788,141.03,140.98,7.093]
[1720048539698,13.54,140.99,140.98,7.093]
[1720048540593,13.54,140.99,140.97,24.8274]
[1720048540794,13.54,140.98,140.97,24.8274]
[1720048543515,13.54,140.98,140.96,7.0941]
[1720048543713,13.54,140.97,140.96,7.0941]
[1720048545011,0.17,141.02,140.97,7.0937]
[1720048545012,7.2612,141.02,140.97,7.0937]
[1720048545313,13.54,140.98,140.97,7.0937]
[1720048546215,0.17,141.01,140.97,7.0937]
[1720048546419,13.54,140.99,140.97,7.0937]
[1720048547988,13.54,140.98,140.97,7.0937]
[1720048549516,0.17,141.01,140.98,17.7326]
[1720048549717,0.17,141.02,140.99,7.0923]
[1720048549905,13.54,141.0,140.99,7.0923]
[1720048550506,0.34,141.03,140.99,7.0923]
[1720048550822,13.54,141.0,140.99,7.0923]
[1720048552000,13.54,141.02,141.0,17.7303]
[1720048552195,13.54,141.02,141.0,24.8223]
[1720048552394,13.54,141.02,141.01,7.0916]
[1720048552621,22.7102,141.06,141.01,7.0916]
[1720048552917,13.54,141.03,141.01,7.0916]
[1720048555203,13.54,141.01,140.99,24.824]
[1720048555421,13.54,141.01,141.0,7.0921]
[1720048555925,0.34,141.04,141.01,7.0913]
[1720048556128,0.34,141.05,141.02,7.0911]
[1720048556301,13.54,141.03,141.02,7.0911]
[1720048556733,20.34,141.05,141.02,7.0911]
[1720048557025,13.54,141.03,141.02,7.0911]
[1720048558915,20.34,141.05,141.02,7.0911]
[1720048559243,13.54,141.03,141.02,7.0911]
[1720048559823,20.0,141.05,141.03,7.0903]
[1720048560021,15.3681,141.09,141.03,17.7264]
[1720048560210,13.54,141.06,141.04,7.09]
[1720048560902,7.0882,141.08,141.04,7.09]
[1720048561102,13.54,141.06,141.04,7.09]
[1720048561310,13.54,141.06,141.03,24.8169]
[1720048561504,13.54,141.05,141.03,24.8169]
[1720048562112,7.0878,141.09,141.04,7.09]
[1720048562429,7.4272,141.1,141.05,7.0895]
[1720048562610,13.54,141.07,141.06,7.0891]
[1720048562929,7.4272,141.1,141.05,17.7237]
[1720048563136,13.54,141.08,141.05,24.8132]
[1720048563523,13.54,141.07,141.05,17.7237]
[1720048564031,13.54,141.06,141.05,17.7237]
[1720048564232,13.54,141.06,141.05,24.8133]
[1720048564641,13.54,141.07,141.05,24.8133]
[1720048565143,13.54,141.07,141.06,7.0891]
[1720048566451,7.0862,141.12,141.05,31.2637]
[1720048566624,13.54,141.1,141.08,7.0881]
[1720048566827,22.4539,141.13,141.08,7.0881]
[1720048567025,13.54,141.1,141.08,7.0881]
[1720048567540,22.4539,141.13,141.09,7.0876]
[1720048567541,13.54,141.11,141.09,7.0876]
[1720048567939,13.54,141.11,141.08,7.088]
[1720048568149,13.54,141.1,141.08,7.088]
[1720048568347,7.0856,141.13,141.08,7.088]
[1720048568533,13.54,141.1,141.09,7.0876]
[1720048568724,13.54,141.11,141.09,7.0876]
[1720048569922,13.5249,141.14,141.09,7.0876]
[1720048570117,13.54,141.11,141.09,7.0876]
[1720048571342,13.54,141.11,141.07,17.7212]
[1720048571343,0.34,141.13,141.1,7.0871]
[1720048571541,13.54,141.11,141.1,7.0871]
[1720048571740,16.4057,141.16,141.12,7.0857]
[1720048571930,13.54,141.14,141.11,17.7163]
[1720048572243,13.54,141.12,141.11,17.7163]
[1720048573251,13.54,141.12,141.1,7.0871]
[1720048573746,13.54,141.11,141.1,7.0871]
[1720048574122,13.54,141.11,141.09,7.0875]
[1720048574340,0.17,141.13,141.08,24.8073]
[1720048574341,13.54,141.1,141.08,24.8073]
[1720048575150,13.54,141.1,141.09,7.0876]
[1720048578637,15.3968,141.13,141.11,7.0864]
[1720048578839,13.54,141.12,141.11,7.0864]
[1720048579039,13.71,141.12,141.11,7.0864]
[1720048579540,13.71,141.12,141.1,24.8042]
[1720048579740,13.54,141.11,141.1,24.8042]
[1720048580043,13.54,141.11,141.08,7.0877]
[1720048580250,13.54,141.09,141.08,7.0877]
[1720048584443,13.54,141.1,141.09,24.806]
[1720048586161,13.54,141.11,141.1,7.0871]
[1720048589134,13.54,141.11,141.09,17.7184]
[1720048589337,13.54,141.1,141.09,17.7184]
[1720048589538,13.54,141.1,141.09,24.806]
[1720048590664,0.17,141.12,141.09,17.7184]
[1720048590880,0.17,141.12,141.11,7.0866]
[1720048590881,13.54,141.12,141.11,7.0866]
[1720048592448,13.54,141.12,141.1,7.0869]
[1720048593457,7.0847,141.15,141.1,7.0869]
[1720048593666,0.17,141.14,141.11,7.0866]
[1720048593844,13.54,141.13,141.11,7.0866]
[1720048594865,13.54,141.12,141.11,7.0866]
[1720048596783,20.17,141.15,141.12,7.0861]
[1720048597274,13.54,141.13,141.12,7.0861]
[1720048598160,20.17,141.15,141.12,7.0861]
[1720048598470,13.54,141.13,141.12,7.0861]
[1720048601064,0.17,141.15,141.13,7.0856]
[1720048601365,7.40878065,141.18,141.14,7.085]
[1720048601571,13.54,141.16,141.14,7.085]
[1720048601870,20.0,141.17,141.14,7.085]
[1720048602071,40.2606717,141.16,141.14,7.085]
[1720048602259,13.54,141.16,141.14,7.085]
[1720048602460,6.26198159,141.15,141.14,7.085]
[1720048604893,20.0,141.17,141.14,7.085]
[1720048605064,40.26054537,141.16,141.14,7.085]
[1720048605259,6.26197628,141.15,141.14,7.085]
[1720048608292,13.54,141.16,141.14,7.085]
[1720048608469,20.45858712,141.15,141.14,7.085]
[1720048611366,20.45858987,141.15,141.14,7.085]
[1720048612481,33.99858987,141.15,141.13,24.7992]
[1720048612663,33.99858987,141.15,141.1,37.9729]
[1720048612664,20.0,141.17,141.11,7.0862]
[1720048612865,36.06159261,141.16,141.1,17.7175]
[1720048613090,13.54,141.12,141.1,24.8042]
[1720048613389,13.54,141.12,141.11,7.0866]
[1720048617791,20.0,141.15,141.11,7.0866]
[1720048618094,20.62898137,141.14,141.12,7.086]
[1720048618294,13.54,141.13,141.12,7.086]
[1720048618897,0.17,141.14,141.13,7.0856]
[1720048619269,34.16896099,141.14,141.13,7.0856]
[1720048619486,54.16896099,141.14,141.13,7.0856]
[1720048619876,54.16896099,141.14,141.12,24.8011]
[1720048620203,13.54,141.13,141.12,24.8011]
[1720048623496,13.54,141.13,141.09,17.7183]
[1720048623497,54.34037242,141.13,141.09,17.7183]
[1720048623800,13.54,141.1,141.09,24.8054]
[1720048624269,0.34,141.12,141.09,24.8054]
[1720048624474,13.54,141.1,141.09,24.8054]
[1720048631397,0.34,141.12,141.09,24.8054]
[1720048631597,0.34,141.13,141.09,24.8054]
[1720048631802,13.54,141.1,141.09,24.8054]
[1720048635318,20.0,141.13,141.09,17.7183]
[1720048635614,20.0,141.12,141.09,17.7183]
[1720048635813,13.54,141.12,141.09,17.7183]
[1720048636028,13.54,141.12,141.1,7.0869]
[1720048636197,7.0848,141.15,141.1,7.0869]
[1720048636398,13.54,141.11,141.1,7.0869]
[1720048636598,0.34,141.14,141.1,7.0869]
[1720048636798,13.54,141.11,141.1,7.0869]
[1720048638097,13.54,141.11,141.09,17.7183]
[1720048638298,13.54,141.1,141.09,17.7183]
[1720048639119,13.54,141.1,141.09,24.8059]
[1720048643620,7.4253,141.14,141.09,24.8059]
[1720048643823,13.54,141.1,141.09,24.8059]
[1720048646901,7.4253,141.14,141.09,24.8059]
[1720048647118,13.54,141.1,141.09,24.8059]
[1720048649423,20.0,141.13,141.1,7.087]
[1720048649725,13.54,141.11,141.1,7.087]
[1720048651011,7.0852,141.14,141.1,7.087]
[1720048651215,13.54,141.11,141.1,7.087]
[1720048651728,13.54,141.11,141.09,24.8058]
[1720048651931,13.54,141.1,141.09,24.8058]
[1720048656223,13.54,141.1,141.08,7.0881]
[1720048656419,13.54,141.09,141.07,7.0882]
[1720048656619,13.54,141.08,141.07,7.0882]
[1720048660120,13.54,141.12,141.08,17.7197]
[1720048660319,0.34,141.11,141.09,7.0875]
[1720048660536,13.54,141.1,141.09,7.0875]
[1720048660742,13.71,141.1,141.09,7.0875]
[1720048661928,13.54,141.1,141.09,7.0875]
[1720048664732,0.17,141.11,141.09,7.0875]
[1720048664947,13.54,141.1,141.09,7.0875]
[1720048671328,19.80315184,141.1,141.08,17.7197]
[1720048671531,39.97315184,141.09,141.04,17.7248]
[1720048671751,13.54,141.05,141.04,24.8148]
[1720048672828,13.54,141.05,141.04,17.7248]
[1720048673439,13.54,141.05,141.04,24.8149]
[1720048673637,13.54,141.05,141.04,17.7248]
[1720048673840,27.42,141.05,141.04,17.7248]
[1720048674039,47.42,141.05,141.02,7.091]
[1720048674353,13.54,141.03,141.02,7.091]
[1720048675970,13.54,141.03,140.99,35.4614]
[1720048675971,20.0,141.05,141.03,17.726]
[1720048676269,20.0,141.05,141.04,7.0901]
[1720048676471,33.54,141.05,141.04,7.0901]
[1720048677268,33.54,141.05,141.03,24.8166]
[1720048677557,13.54,141.04,141.03,24.8166]
[1720048677762,20.0,141.05,141.04,7.0901]
[1720048677951,33.54,141.05,141.04,7.0901]
[1720048678740,33.54,141.05,141.03,24.8166]
[1720048679071,13.54,141.04,141.03,24.8166]
[1720048681845,15.8405,141.1,141.03,17.726]
[1720048682158,13.54,141.05,141.03,17.726]
[1720048683248,7.2593,141.06,141.0,17.7298]
[1720048683452,13.54,141.02,141.01,7.0916]
[1720048685861,13.54,141.05,141.02,7.0911]
[1720048686063,13.54,141.03,141.02,7.0911]
[1720048686457,7.0925,141.0,140.94,33.8137]
[1720048686776,13.54,140.97,140.94,33.8137]
[1720048686946,13.54,140.97,140.96,7.094]
[1720048687144,13.54,140.98,140.97,7.0937]
[1720048687372,13.54,140.98,140.96,17.7346]
[1720048687663,13.54,140.97,140.96,24.8287]
[1720048688559,0.34,141.01,140.98,7.0931]
[1720048688856,13.54,140.99,140.98,24.8258]
[1720048689447,0.34,141.02,140.99,7.0924]
[1720048689745,76.333,141.05,140.99,7.0924]
[1720048689746,13.54,141.0,140.99,7.0924]
[1720048690379,13.71,141.0,140.95,17.7358]
[1720048690547,13.54,140.96,140.93,7.0953]
[1720048690753,13.54,140.94,140.93,7.0953]
[1720048691777,13.54,140.95,140.93,7.0955]
[1720048692170,13.54,140.94,140.93,7.0955]
[1720048695773,54.16,140.98,140.94,7.095]
[1720048695981,0.34,140.97,140.96,7.0942]
[1720048696170,33.88,140.97,140.95,7.0945]
[1720048696487,13.54,140.96,140.95,7.0945]
[1720048696854,33.54,140.96,140.95,7.0945]
[1720048697870,20.0,140.96,140.95,7.0945]
[1720048698176,33.54,140.96,140.95,7.0945]
[1720048698762,16.6362,141.03,140.97,7.0935]
[1720048699079,13.54,140.99,140.98,7.093]
[1720048699692,16.6362,141.03,140.99,7.0926]
[1720048699858,13.54,141.0,140.98,24.8253]
[1720048701072,7.0908,141.03,140.99,7.0925]
[1720048701385,13.54,141.0,140.98,24.8253]
[1720048702072,13.54,140.99,140.98,24.8253]
[1720048703162,13.54,141.0,140.98,24.8253]
[1720048703380,13.54,141.0,140.99,7.0927]
[1720048703767,13.54,141.01,140.99,7.0927]
[1720048704481,7.0908,141.03,140.98,24.8253]
[1720048704785,13.54,140.99,140.98,24.8253]
[1720048704994,13.54,140.99,140.95,17.7358]
[1720048705373,13.54,140.98,140.97,7.0936]
[1720048705771,13.54,140.99,140.97,7.0936]
[1720048705988,13.54,140.99,140.98,7.0932]
[1720048706290,13.54,141.01,140.99,7.0926]
[1720048707183,0.34,141.02,140.99,7.0926]
[1720048707372,13.54,141.01,140.99,7.0926]
[1720048709987,13.54,141.02,141.0,7.0921]
[1720048710189,16.3623,141.06,140.94,35.4741]
[1720048710190,23.4519,141.06,141.02,7.091]
[1720048710492,13.54,141.03,141.02,7.0911]
[1720048710791,13.54,141.04,141.02,7.0911]
[1720048711176,13.54,141.04,141.01,24.8202]
[1720048711377,13.54,141.03,141.01,24.8202]
[1720048711577,13.54,141.02,141.01,24.8202]
[1720048711779,13.54,141.02,140.99,7.0922]
[1720048712066,13.54,141.01,140.99,7.0922]
[1720048713183,13.54,141.01,140.98,33.6504]
[1720048713184,13.54,141.01,141.0,7.0921]
[1720048713776,61.2497,141.05,141.01,7.0916]
[1720048714100,13.54,141.02,141.01,7.0916]
[1720048715190,13.54,141.02,141.0,24.8222]
[1720048715873,20.34,141.04,141.0,24.8222]
[1720048716195,13.54,141.02,141.0,24.8222]
[1720048716394,20.34,141.04,141.0,24.8222]
[1720048716592,13.54,141.02,141.0,24.8222]
[1720048717296,13.54,141.02,141.01,7.0916]
[1720048717495,20.0,141.04,141.03,7.0906]
[1720048719580,33.54,141.04,141.03,7.0906]
[1720048720399,13.54,141.04,141.03,7.0906]
[1720048721011,13.54,141.04,141.02,24.8187]
[1720048724889,13.54,141.03,141.02,24.8187]
[1720048726512,13.54,141.04,141.02,24.8187]
[1720048728402,7.0892,141.06,141.02,24.8187]
[1720048728611,13.54,141.04,141.02,24.8187]
[1720048731109,13.54,141.03,141.02,24.8187]
[1720048731807,13.54,141.03,140.99,17.7308]
[1720048731808,20.9708,141.03,140.99,17.7308]
[1720048732110,13.54,141.01,140.99,17.7308]
[1720048732814,13.54,141.01,140.99,24.8233]
[1720048733312,13.54,141.0,140.99,24.8233]
[1720048733807,13.54,141.02,141.0,7.092]
[1720048737698,13.54,141.01,141.0,7.092]
[1720048738509,7.0902,141.04,141.0,7.092]
[1720048738808,13.54,141.01,141.0,7.092]
[1720048741391,13.54,141.01,140.96,17.7347]
[1720048741588,13.54,141.01,140.96,24.8287]
[1720048741589,13.54,140.98,140.96,24.8287]
[1720048743018,13.54,140.98,140.97,7.0937]
[1720048743596,13.54,140.98,140.96,24.8287]
[1720048743813,13.54,140.97,140.96,24.8287]
[1720048743997,7.2622,141.0,140.96,24.8287]
[1720048744198,13.54,140.97,140.96,24.8287]
[1720048744426,13.54,140.97,140.96,17.7347]
[1720048745216,13.54,140.97,140.96,24.8289]
[1720048745408,13.54,140.97,140.93,17.7389]
[1720048745606,13.54,140.95,140.93,17.7389]
[1720048745803,13.54,140.94,140.93,24.8346]
[1720048746114,13.71,140.98,140.94,7.0948]
[1720048746320,13.54,140.95,140.94,7.0948]
[1720048747209,13.88,140.95,140.94,7.0948]
[1720048747720,13.71,140.95,140.94,7.0948]
[1720048748021,7.0922,141.0,140.95,7.0943]
[1720048748196,13.54,140.96,140.95,7.0943]
[1720048748599,0.34,140.99,140.96,7.0941]
[1720048748799,13.54,140.97,140.96,7.0941]
[1720048749026,33.54,140.97,140.96,7.0941]
[1720048749821,33.54,140.97,140.95,24.8311]
[1720048750332,13.54,140.96,140.95,24.8311]
[1720048750911,33.54,140.97,140.95,24.8311]
[1720048751124,0.34,140.99,140.95,24.8311]
[1720048751125,13.54,140.99,140.95,17.7365]
[1720048751435,20.0,140.98,140.95,17.7365]
[1720048751819,20.0,140.98,140.95,24.8307]
[1720048752013,33.54,140.98,140.95,24.8307]
[1720048752216,20.0,140.98,140.95,24.8307]
[1720048752423,13.54,140.97,140.96,7.0942]
[1720048752735,7.0918,141.01,140.96,7.0942]
[1720048752934,13.54,140.98,140.95,24.831]
[1720048753121,7.2623,141.0,140.95,24.831]
[1720048753122,13.54,140.97,140.95,24.831]
[1720048753729,13.54,140.97,140.96,7.0942]
[1720048753926,0.17,141.0,140.97,7.0937]
[1720048754234,13.54,140.99,140.96,7.094]
[1720048755138,7.0922,141.0,140.96,7.094]
[1720048755139,13.54,140.98,140.96,7.094]
[1720048755929,7.4318,141.01,140.96,7.094]
[1720048756132,13.54,140.98,140.96,7.094]
[1720048756341,13.54,140.99,140.96,7.094]
[1720048760041,0.34,141.01,140.97,17.7337]
[1720048760342,13.54,141.0,140.98,7.093]
[1720048762140,13.54,141.0,140.97,24.8272]
[1720048766733,7.2617,141.01,140.97,24.8272]
[1720048766922,13.54,141.0,140.97,24.8272]
[1720048767123,7.0913,141.02,140.98,7.0931]
[1720048767323,15.5853,141.08,140.99,17.7316]
[1720048767543,13.54,141.03,141.0,7.0918]
[1720048769028,7.0897,141.05,141.0,7.0918]
[1720048769266,13.54,141.03,141.0,7.0918]
[1720048769751,7.0897,141.05,141.01,7.0916]
[1720048769950,13.54,141.03,141.0,7.092]
[1720048770155,13.54,141.03,140.99,24.8241]
[1720048771639,20.0,141.04,141.02,7.091]
[1720048771951,13.54,141.03,141.01,24.8201]
[1720048772954,13.54,141.03,141.01,17.7286]
[1720048774746,7.2599,141.05,141.01,17.7286]
[1720048774947,13.54,141.03,141.01,17.7286]
[1720048780435,13.54,141.03,141.01,24.8202]
[1720048783335,13.54,141.03,141.01,17.7286]
[1720048783556,13.54,141.02,140.99,7.0925]
[1720048783932,13.54,141.02,141.0,7.0921]
[1720048784139,13.54,141.02,141.01,7.0916]
[1720048784436,20.0,141.04,141.01,7.0916]
[1720048784645,13.54,141.03,141.01,7.0916]
[1720048785558,20.0,141.04,141.01,7.0916]
[1720048786060,13.54,141.03,141.01,7.0916]
[1720048786558,20.0,141.04,141.02,7.091]
[1720048786775,13.54,141.05,141.02,7.091]
[1720048787138,20.0,141.04,141.02,7.091]
[1720048787339,13.54,141.05,141.02,7.091]
[1720048790340,13.54,141.05,141.01,13.54]
[1720048790341,13.54,141.05,141.01,7.0915]
[1720048790540,20.6297,141.05,141.01,7.0915]
[1720048790767,13.54,141.04,141.01,7.0915]
[1720048790939,13.54,141.04,141.0,24.8223]
[1720048791456,13.54,141.03,141.0,24.8223]
[1720048793257,13.54,141.03,141.01,7.0914]
[1720048794257,13.54,141.04,141.01,7.0914]
[1720048795165,7.0893,141.06,141.02,7.0911]
[1720048795371,13.54,141.04,141.02,7.0911]
[1720048798057,13.54,141.03,141.02,7.0911]
[1720048801449,0.34,141.05,141.02,7.0911]
[1720048801650,13.54,141.03,141.02,7.0911]
[1720048801973,0.34,141.05,141.02,7.0911]
[1720048802179,19.79549971,141.04,141.02,7.0911]
[1720048802478,13.54,141.04,141.02,7.0911]
[1720048808967,6.25568072,141.03,141.02,7.0911]
[1720048809363,6.25507714,141.03,141.02,7.0911]
[1720048809770,13.34587714,141.03,140.95,21.883]
[1720048809979,13.54,141.0,140.95,21.883]
[1720048810156,13.54,141.0,140.98,24.8252]
[1720048810358,0.17,141.03,140.99,7.0927]
[1720048810556,13.54,141.01,140.99,7.0927]
[1720048814290,20.34,141.03,141.0,7.0921]
[1720048814489,6.25545655,141.02,141.0,7.0921]
[1720048814783,20.34,141.03,141.0,7.0921]
[1720048815078,6.25545406,141.02,141.0,7.0921]
[1720048815280,20.34,141.03,141.0,7.0921]
[1720048815653,6.25537946,141.02,141.0,7.0921]
[1720048815878,20.34,141.03,141.0,7.0921]
[1720048816081,6.2554095,141.02,141.0,7.0921]
[1720048816386,20.34,141.03,141.0,7.0921]
[1720048816677,16.94,141.01,141.0,7.0921]
[1720048824081,16.94,141.01,140.95,17.7357]
[1720048824386,16.94,140.97,140.95,24.8303]
[1720048824580,16.94,140.96,140.95,17.7357]
[1720048824764,16.94,140.96,140.95,24.8304]
[1720048826173,0.17,140.98,140.95,24.8304]
[1720048826374,0.17,140.99,140.96,7.0941]
[1720048826575,16.94,140.97,140.96,7.0941]
[1720048826989,16.94,140.97,140.95,24.8302]
[1720048827190,16.94,140.96,140.95,24.8302]
[1720048829389,7.0917,141.01,140.95,17.7357]
[1720048829572,20.0,141.0,140.98,7.093]
[1720048829773,7.0913,141.02,140.98,7.093]
[1720048829774,16.94,140.99,140.98,7.093]
[1720048829967,16.94,140.99,140.97,24.8273]
[1720048829968,36.94,140.99,140.97,24.8273]
[1720048830181,16.94,140.99,140.97,24.8273]
[1720048830387,16.94,140.99,140.98,7.0932]
[1720048831484,16.94,140.99,140.97,24.8273]
[1720048831688,7.0913,141.02,140.97,24.8273]
[1720048831885,16.94,140.99,140.97,24.8273]
[1720048832785,16.94,140.98,140.97,17.7338]
[1720048834380,16.94,140.98,140.96,7.094]
[1720048835996,7.0924,141.0,140.96,7.094]
[1720048836201,16.94,140.98,140.96,7.094]
[1720048836393,0.17,141.01,140.96,17.735]
[1720048836593,20.17,141.02,140.96,16.94]
[1720048836895,16.94,141.0,140.96,16.94]
[1720048837196,16.94,141.01,140.96,16.94]
[1720048837390,16.94,141.01,140.99,7.0926]
[1720048838982,16.94,141.01,140.98,24.8257]
[1720048839988,16.94,141.01,140.98,17.7327]
[1720048840182,16.94,141.0,140.97,7.0935]
[1720048840402,16.94,140.99,140.96,7.094]
[1720048840996,16.94,140.99,140.97,7.0936]
[1720048841499,7.0917,141.01,140.97,7.0936]
[1720048841703,20.17,141.02,140.97,17.734]
[1720048842004,16.94,141.01,140.97,17.734]
[1720048842205,20.17,141.02,140.99,7.0923]
[1720048842405,16.94,141.01,140.99,7.0923]
[1720048843295,16.94,141.01,140.98,7.093]
[1720048845515,20.0,141.02,140.99,17.7315]
[1720048845680,16.94,141.03,140.99,17.7315]
[1720048845889,20.0,141.02,141.0,7.0921]
[1720048846202,7.0918,141.01,140.96,39.0642]
[1720048846404,7.0918,141.01,140.97,7.0933]
[1720048846600,16.94,141.0,140.97,7.0933]
[1720048847788,16.94,141.0,140.98,7.0931]
[1720048850193,16.94,141.01,140.98,17.7325]
[1720048850387,36.94,141.02,141.0,7.0918]
[1720048851202,23.408,141.06,141.01,7.0915]
[1720048851419,16.94,141.03,141.01,7.0915]
[1720048851798,16.94,141.03,141.0,17.73]
[1720048851799,16.94,141.04,141.02,7.0911]
[1720048855214,16.94,141.04,141.01,7.0914]
[1720048855599,16.94,141.02,140.97,17.7335]
[1720048855808,16.94,140.99,140.93,15.4483]
[1720048856002,16.94,140.99,140.94,52.414]
[1720048856598,16.94,140.99,140.96,7.0939]
[1720048857529,16.94,140.98,140.97,7.0936]
[1720048858421,16.94,140.98,140.94,52.414]
[1720048858422,16.94,140.98,140.92,17.7399]
[1720048858606,16.94,140.95,140.92,24.8356]
[1720048859327,16.94,140.95,140.93,7.0956]
[1720048860917,16.94,140.95,140.92,17.7399]
[1720048860918,16.94,140.95,140.94,7.0952]
[1720048862236,16.94,140.96,140.94,7.0952]
[1720048867129,0.17,140.97,140.94,7.0952]
[1720048867304,16.94,140.96,140.94,7.0952]
[1720048868830,16.94,140.96,140.93,7.0955]
[1720048871926,7.0933,140.98,140.94,7.0951]
[1720048872229,16.94,140.97,140.94,7.0951]
[1720048873014,15.5503,141.04,140.93,52.4185]
[1720048873223,16.94,140.99,140.96,24.8289]
[1720048873627,16.94,140.99,140.96,17.7351]
[1720048873827,16.94,140.98,140.96,17.7351]
[1720048875133,16.94,140.99,140.96,24.8292]
[1720048875816,16.94,140.99,140.9,21.33]
[1720048875817,16.94,140.97,140.93,24.834]
[1720048876023,16.94,140.96,140.93,24.834]
[1720048876529,16.94,140.97,140.94,7.0949]
[1720048876734,16.94,140.97,140.95,7.0946]
[1720048877242,16.94,140.98,140.95,7.0946]
[1720048877734,24.0332,140.98,140.94,7.0951]
[1720048877938,16.94,140.97,140.94,7.0951]
[1720048880824,7.2628,140.99,140.94,7.0951]
[1720048881025,7.2628,140.99,140.95,7.0946]
[1720048881026,16.94,140.97,140.95,7.0946]
[1720048881225,7.0947,140.95,140.91,7.0966]
[1720048881426,16.94,140.94,140.91,7.0966]
[1720048882437,16.94,140.92,140.9,17.7425]
[1720048882644,16.94,140.91,140.9,17.7425]
[1720048884237,16.94,140.91,140.9,24.8397]
[1720048886524,16.94,140.91,140.88,7.0979]
[1720048886737,16.94,140.89,140.87,24.8444]
[1720048886940,16.94,140.89,140.87,17.7459]
[1720048888317,16.94,140.89,140.88,7.0982]
[1720048888544,17.11,140.89,140.88,7.0982]
[1720048888734,0.17,140.89,140.88,7.0982]
[1720048888932,17.11,140.89,140.88,7.0982]
[1720048890240,17.28,140.89,140.87,24.8446]
[1720048890545,17.11,140.88,140.87,24.8446]
[1720048891251,17.28,140.88,140.84,18.5877383]
[1720048891546,17.11,140.87,140.84,18.5877383]
[1720048892240,17.11,140.87,140.86,7.099]
[1720048892430,17.28,140.87,140.86,7.099]
[1720048893950,17.32,140.87,140.86,7.099]
[1720048895246,87.92,140.91,140.87,7.0987]
[1720048895550,0.34,140.9,140.87,7.0987]
[1720048896141,16.98,140.88,140.87,7.0987]
[1720048896340,17.15,140.88,140.87,7.0987]
[1720048896654,20.0,140.91,140.9,24.8402]
[1720048899459,16.98,140.93,140.9,24.8402]
[1720048899644,17.15,140.92,140.9,24.8402]
[1720048900057,0.17,140.94,140.9,17.743]
[1720048900239,16.98,140.94,140.91,7.0966]
[1720048900438,20.0,140.93,140.91,7.0966]
[1720048902668,16.96,140.94,140.91,7.0966]
[1720048902868,20.0,140.93,140.91,7.0966]
[1720048903251,5.61164847,140.99,140.92,17.7403]
[1720048903559,16.96,140.97,140.94,7.0948]
[1720048904065,24.0537,140.97,140.93,24.0556]